Workbook

Sheet паспорт
A1: ПАТ "УКРТРАНСГАЗ" | G1: ПАСПОРТ ФІЗИКО-ХІМІЧНИХ ПОКАЗНИКІВ ПРИРОДНОГО ГАЗУ № 456
A2: Філія "УМГ "ПРИКАРПАТТРАНСГАЗ" | G2: переданого Долинським ЛВУМГ та прийнятого ПАТ "Івано-Франківськгаз", ПАТ "Тисменицягаз" та ТОВ "Карпатнафтохім"
A3: Долинське ЛВУМГ | G3: Маршрут № 456
A4: Вимірювальна хіміко-аналітична лабораторія
A5: Свідоцтво № ІФ 757 чинне до 28.05.2019 р. | K5: по газопроводу "Угерсько-Івано-Франківськ-Чернівці" | V5: за період з | X5: 2017-02-01 | Z5: по | AA5: 2017-02-28
A7: Число місяця | B7: Компонентний склад, % мол. | N7: Фізико-хімічні показники газу обчислені на основі компонентного складу, 101,325 кПа | X7: Температура точки роси вологи (Р = 3.92 МПа), ºС | Y7: Температура точки роси вуглеводнів, ºС | Z7: Вміст сірководню, г/м3 | AA7: Вміст меркаптанової сірки, г/м3 | AB7: Вміст механічних домішок, г/м3
N8: Густина абсолютна, кг/м3,при 20 ºС, | O8: Температура вимірювання/згоряння при 20/25°С
B9: метан, С1 | C9: етан, С2 | D9: пропан, С3 | E9: ізо-бутан, і-С4 | F9: н-бутан, н-С4 | G9: нео-пентан, нео-С5 | H9: ізо-пентан, і-С5 | I9: н-пентан, н-С5 | J9: гексани та вищі, С6+ | K9: кисень, О2 | L9: азот, N2 | M9: діоксид вуглецю, CО2 | O9: Теплота згоряння нижча | R9: Теплота згоряння вища | U9: Число Воббе вище
O10: ккал/м3 | P10: МДж/м3 | Q10: кВт⋅год/м3 | R10: ккал/м3 | S10: МДж/м3 | T10: кВт⋅год/м3 | U10: ккал/м3 | V10: МДж/м3 | W10: кВт⋅год/м3
A11: 1 | O11: =P11*238.8459 -> 8185.965531 | P11: 34.273 | Q11: =P11/3.6 -> 9.520277778 | R11: =S11*238.8459 -> 9072.059935 | S11: 37.9829 | T11: =S11/3.6 -> 10.55080556 | AC11: =SUM(B11:M11)+$K$39+$N$39 -> 0
A12: 2 | O12: =P12*238.8459 -> 8185.965531 | P12: 34.273 | Q12: 9.520277778 | R12: =S12*238.8459 -> 9072.059935 | S12: 37.9829 | T12: 10.55080556 | AC12: 0
A13: 3 | O13: 8185.965531 | P13: 34.273 | Q13: 9.520277778 | R13: 9072.059935 | S13: 37.9829 | T13: 10.55080556 | AC13: 0 | AD13: =IF(AC13=100,"ОК"," ") -> 
A14: 4 | O14: 8185.965531 | P14: 34.273 | Q14: 9.520277778 | R14: 9072.059935 | S14: 37.9829 | T14: 10.55080556 | AC14: 0 | AD14: =IF(AC14=100,"ОК"," ") -> 
A15: 5 | O15: 8185.965531 | P15: 34.273 | Q15: 9.520277778 | R15: 9072.059935 | S15: 37.9829 | T15: 10.55080556 | AC15: 0
A16: 6 | O16: 8185.965531 | P16: 34.273 | Q16: 9.520277778 | R16: 9072.059935 | S16: 37.9829 | T16: 10.55080556 | AC16: 0
A17: 7 | B17: 95.6778 | C17: 2.4534 | D17: 0.5661 | E17: 0.0904 | F17: 0.0877 | G17: 0.0009 | H17: 0.0171 | I17: 0.012 | J17: 0.016 | K17: 0.0082 | L17: 0.7164 | M17: 0.354 | N17: 0.7013 | O17: 8167.168358 | P17: 34.1943 | Q17: 9.498416667 | R17: 9052.498456 | S17: 37.901 | T17: 10.52805556 | U17: =V17*238.8459 -> 11863.47585 | V17: 49.67 | W17: =V17/3.6 -> 13.79722222 | X17: -9.4 | Y17: -1.9 | Z17: 0.0002 | AA17: 0.0003 | AB17: 0 | AC17: 100 | AD17: ОК
A18: 8 | O18: 8167.168358 | P18: 34.1943 | Q18: 9.498416667 | R18: 9052.498456 | S18: 37.901 | T18: 10.52805556 | AC18: 0
A19: 9 | O19: 8167.168358 | P19: 34.1943 | Q19: 9.498416667 | R19: 9052.498456 | S19: 37.901 | T19: 10.52805556 | AC19: 0
A20: 10 | O20: 8167.168358 | P20: 34.1943 | Q20: 9.498416667 | R20: 9052.498456 | S20: 37.901 | T20: 10.52805556 | AC20: 0
A21: 11 | O21: 8167.168358 | P21: 34.1943 | Q21: 9.498416667 | R21: 9052.498456 | S21: 37.901 | T21: 10.52805556 | AC21: 0
A22: 12 | O22: 8167.168358 | P22: 34.1943 | Q22: 9.498416667 | R22: 9052.498456 | S22: 37.901 | T22: 10.52805556 | AC22: 0
A23: 13 | O23: 8167.168358 | P23: 34.1943 | Q23: 9.498416667 | R23: 9052.498456 | S23: 37.901 | T23: 10.52805556 | AC23: 0
A24: 14 | B24: 95.429 | C24: 2.5531 | D24: 0.5583 | E24: 0.0885 | F24: 0.0849 | G24: 0.0018 | H24: 0.0165 | I24: 0.0119 | J24: 0.0507 | K24: 0.01 | L24: 0.7234 | M24: 0.4719 | N24: 0.7042 | O24: 8172.231891 | P24: 34.2155 | Q24: 9.504305556 | R24: 9057.538104 | S24: 37.9221 | T24: 10.53391667 | U24: =V24*238.8459 -> 11845.96845 | V24: 49.5967 | W24: =V24/3.6 -> 13.77686111 | X24: =H25-8.1 -> -8.1 | AC24: 100 | AD24: ОК
A25: 15 | O25: 8172.231891 | P25: 34.2155 | Q25: 9.504305556 | R25: 9057.538104 | S25: 37.9221 | T25: 10.53391667 | AC25: 0
A26: 16 | O26: 8172.231891 | P26: 34.2155 | Q26: 9.504305556 | R26: 9057.538104 | S26: 37.9221 | T26: 10.53391667 | AC26: 0
A27: 17 | O27: 8172.231891 | P27: 34.2155 | Q27: 9.504305556 | R27: 9057.538104 | S27: 37.9221 | T27: 10.53391667 | AC27: 0
A28: 18 | O28: 8172.231891 | P28: 34.2155 | Q28: 9.504305556 | R28: 9057.538104 | S28: 37.9221 | T28: 10.53391667 | AC28: 0
A29: 19 | O29: 8172.231891 | P29: 34.2155 | Q29: 9.504305556 | R29: 9057.538104 | S29: 37.9221 | T29: 10.53391667 | AC29: 0
A30: 20 | O30: 8172.231891 | P30: 34.2155 | Q30: 9.504305556 | R30: 9057.538104 | S30: 37.9221 | T30: 10.53391667 | AC30: 0 | AD30: =IF(AC30=100,"ОК"," ") -> 
A31: 21 | B31: 95.8775 | C31: 2.3369 | D31: 0.5707 | E31: 0.0908 | F31: 0.0867 | G31: 0.0021 | H31: 0.0184 | I31: 0.014 | J31: 0.0375 | K31: 0.0103 | L31: 0.7021 | M31: 0.253 | N31: 0.7002 | O31: 8177.080463 | P31: 34.2358 | Q31: 9.509944444 | R31: 9063.461483 | S31: 37.9469 | T31: 10.54080556 | U31: =V31*238.8459 -> 11887.50375 | V31: 49.7706 | W31: =V31/3.6 -> 13.82516667 | X31: -12.8 | AC31: 100 | AD31: ОК
A32: 22 | O32: 8177.080463 | P32: 34.2358 | Q32: 9.509944444 | R32: 9063.461483 | S32: 37.9469 | T32: 10.54080556 | AC32: 0
A33: 23 | O33: 8177.080463 | P33: 34.2358 | Q33: 9.509944444 | R33: 9063.461483 | S33: 37.9469 | T33: 10.54080556 | AC33: 0 | AD33: =IF(AC33=100,"ОК"," ") -> 
A34: 24 | O34: 8177.080463 | P34: 34.2358 | Q34: 9.509944444 | R34: 9063.461483 | S34: 37.9469 | T34: 10.54080556 | AC34: 0
A35: 25 | O35: 8177.080463 | P35: 34.2358 | Q35: 9.509944444 | R35: 9063.461483 | S35: 37.9469 | T35: 10.54080556 | AC35: 0
A36: 26 | O36: 8177.080463 | P36: 34.2358 | Q36: 9.509944444 | R36: 9063.461483 | S36: 37.9469 | T36: =S36/3.6 -> 10.54080556 | AC36: 0
A37: 27 | O37: 8177.080463 | P37: 34.2358 | Q37: 9.509944444 | R37: 9063.461483 | S37: 37.9469 | T37: 10.54080556 | AC37: 0
A38: 28 | B38: 95.4549 | C38: 2.6797 | D38: 0.5726 | E38: 0.0922 | F38: 0.0899 | G38: 0.0011 | H38: 0.0184 | I38: 0.0135 | J38: 0.055 | K38: 0.0096 | L38: 0.6707 | M38: 0.3424 | N38: 0.7036 | O38: 8200.129093 | P38: 34.3323 | Q38: 9.53675 | R38: 9087.967072 | S38: 38.0495 | T38: 10.56930556 | U38: =V38*238.8459 -> 11890.15494 | V38: 49.7817 | W38: =V38/3.6 -> 13.82825 | X38: -8.2 | AC38: 100 | AD38: ОК
A39: Рівень одоризації відповідає чинним нормативним документам | O39: 8174.87544 | P39: 34.22656801 | Q39: 9.507380003 | R39: 9060.606168 | S39: 37.93494537 | T39: 10.53748482
H40: Середньозважене значення теплоти згоряння:
B43: Начальник управління Долинського ЛВУМГ | O43: Бойко В. Т. | U43: 2017-03-01
C44: Підрозділу підприємства, якому підпорядкована лабораторія | O44: прізвище | R44: підпис | U44: дата
B45: Інженер-лаборант II кат. | O45: Ридош О. Р. | U45: 2017-03-01
C46: Лабораторія, де здійснювалось вимірювання газу | O46: прізвище | R46: підпис | U46: дата
B47: Начальник служби ГВ та М | O47: Владика В. М. | U47: 2017-03-01
C48: Метрологічна служба, яка вимірює обсяги газу | O48: прізвище | R48: підпис | U48: дата

Sheet додаток
A2: Додаток до Паспорту фізико-хімічних показників природного газу №456
A4: Область | B4: ГРС, прямий споживач | C4: Cередньозважене значення вищої теплоти згоряння
C5: МДж/м³ | D5: ккал/м³ | E5: кВт*год./м³
A6: Івано-Франківська область | B6: ГРС Калуш-2 | C6: 37.93 | D6: 9060 | E6: 10.54
B7: ТОВ "Карпатнафтохім" | C7: 37.93 | D7: 9060 | E7: 10.54
B8: ГРС Войнилів | C8: 37.94 | D8: 9061 | E8: 10.54
B9: ГРС Майдан Галич (ПАТ "Івано-Франківськгаз") | C9: 37.94 | D9: 9061 | E9: 10.54
B10: ГРС Майдан Ценжів (ПАТ "Тисменицягаз") | C10: 37.94 | D10: 9061 | E10: 10.54
A11: Середньозважене значення вищої теплоти згоряння по маршруту № 456 | C11: 37.93 | D11: 9061 | E11: 10.54
A15: Начальник управління Долинського ЛВУМГ | D15: Бойко В. Т. | F15: 2017-03-01
A16: Підрозділу підприємства, якому підпорядкована лабораторія | D16: прізвище | E16: підпис | F16: дата
A17: Інженер-лаборант 2 кат. | D17: Ридош О. Р. | F17: 2017-03-01
A18: Лабораторія, де здійснювалось вимірювання газу | D18: прізвище | E18: підпис | F18: дата
A19: Начальник служби ГВ та М | D19: Владика В. М. | F19: 2017-03-01
A20: Підрозділу, відповідального за облік газу за маршрутом | D20: прізвище | E20: підпис | F20: дата

Sheet variablesList (hidden)
A1: 3 | B1: x:\gaysin | C1: 10, 11, 24, 25, 127, 128, 132, 180, 207, 215 | D1: x:\
B2: x:\Illinci
B3: x:\Talne
